bitfinex/quotes_SOLUSD_20250811
["timestamp","ask_amount","ask_price","bid_price","bid_amount"]
[1754951379511,0.69,173.97,173.96,89.96]
[1754951379827,0.69,173.97,173.96,131.48]
[1754951381025,5.7478883,173.98,173.96,131.48]
[1754951381231,0.79,173.99,173.96,131.48]
[1754951381617,0.1,173.99,173.96,132.2]
[1754951382122,0.69,173.98,173.96,89.96]
[1754951382302,0.69,173.98,173.97,41.52]
[1754951382507,5.84748112,173.99,173.97,41.52]
[1754951383017,6.53748112,173.99,173.96,0.06]
[1754951383216,6.53748112,173.99,173.97,41.52]
[1754951383727,0.1,173.99,173.97,41.52]
[1754951383933,0.1,173.99,173.97,42.24]
[1754951384613,0.1,173.99,173.97,41.52]
[1754951385526,0.79,173.99,173.96,89.96]
[1754951385733,0.1,173.99,173.98,41.52]
[1754951387938,32.53745675,173.99,173.96,0.06]
[1754951388233,0.69,173.98,173.96,41.58]
[1754951388429,0.69,173.97,173.96,41.58]
[1754951389411,26.69,173.97,173.96,0.06]
[1754951389612,32.43811749,173.97,173.96,0.06]
[1754951393110,5.74785744,173.98,173.96,0.06]
[1754951393529,26.77,173.99,173.96,0.06]
[1754951393838,6.51746943,173.99,173.96,0.06]
[1754951396431,0.77,173.99,173.96,0.06]
[1754951396617,0.1,173.99,173.96,0.71]
[1754951396822,0.1,173.99,173.97,0.65]
[1754951397020,0.1,173.99,173.98,41.5]
[1754951397223,0.1,173.99,173.98,42.15]
[1754951398222,0.03,174.0,173.98,150.25889451]
[1754951398429,0.03,174.0,173.99,21.1663287]
[1754951398834,0.03,174.0,173.99,20.5163287]
[1754951399035,0.03,174.0,173.99,21.1663287]
[1754951399445,0.03,174.0,173.99,27.48853112]
[1754951400325,0.03,174.0,173.99,15.75621557]
[1754951400530,0.03,174.0,173.99,0.65]
[1754951400740,0.03,174.0,173.99,41.5]
[1754951401043,0.03,174.0,173.99,57.25621557]
[1754951401448,0.03,174.0,173.99,63.00367232]
[1754951401624,0.03,174.0,173.99,68.41378545]
[1754951402124,0.03,174.01,174.0,15.10621557]
[1754951402325,0.03,174.01,174.0,16.33092821]
[1754951402522,0.03,174.01,174.0,15.75621557]
[1754951402743,0.03,174.01,174.0,15.10621557]
[1754951402950,0.03,174.01,173.98,15.10621557]
[1754951403144,0.03,174.01,173.99,41.5]
[1754951403349,0.67,174.0,173.96,0.06]
[1754951403550,26.0,173.97,173.96,0.06]
[1754951403851,26.0,173.97,173.92,0.06]
[1754951403852,26.0,173.96,173.92,0.06]
[1754951404030,26.67,173.96,173.9,0.06]
[1754951404358,0.67,173.95,173.9,0.00373858]
[1754951404653,26.0,173.91,173.8,0.06]
[1754951404947,4.76754173,173.89,173.8,0.06]
[1754951405147,58.78436957,173.9,173.8,0.06]
[1754951405148,76.5437573,173.9,173.8,0.06]
[1754951405351,26.0,173.86,173.8,0.06]
[1754951405659,26.0,173.83,173.8,0.06]
[1754951405835,26.0,173.82,173.8,0.06]
[1754951406036,26.67,173.82,173.74,0.06]
[1754951406244,26.0,173.78,173.74,0.06]
[1754951406754,26.0,173.78,173.74,0.71]
[1754951407055,0.67,173.77,173.74,0.06]
[1754951407438,5.75473326,173.77,173.74,0.06]
[1754951407831,0.67,173.76,173.74,0.06]
[1754951408027,26.0,173.78,173.74,0.06]
[1754951408237,26.0,173.78,173.74,0.71]
[1754951408432,30.0,173.81,173.75,0.65]
[1754951408632,26.0,173.81,173.75,0.65]
[1754951409156,0.67,173.8,173.74,0.06]
[1754951409332,26.0,173.78,173.74,0.06]
[1754951409661,0.67,173.77,173.74,0.06]
[1754951409863,26.0,173.82,173.74,0.06]
[1754951410152,0.67,173.76,173.74,0.06]
[1754951410327,26.0,173.82,173.74,0.06]
[1754951410646,0.67,173.79,173.74,0.71]
[1754951410841,0.67,173.81,173.75,0.65]
[1754951411059,0.67,173.84,173.75,0.65]
[1754951411260,0.67,173.84,173.77,15.10621557]
[1754951411432,0.67,173.84,173.76,41.56]
[1754951411754,0.67,173.87,173.78,5.75440211]
[1754951411960,26.0,173.86,173.78,5.75440211]
[1754951412126,26.0,173.86,173.79,0.65]
[1754951412333,26.67,173.86,173.79,0.65]
[1754951412532,0.67,173.85,173.76,42.23]
[1754951412828,0.67,173.85,173.74,0.06]
[1754951412829,26.67,173.85,173.74,0.06]
[1754951413034,0.67,173.84,173.74,0.06]
[1754951413563,0.67,173.84,173.74,0.71]
[1754951414274,0.67,173.84,173.74,6.46559807]
[1754951414552,0.67,173.84,173.76,15.10621557]
[1754951414764,0.67,173.84,173.77,0.65]
[1754951415150,0.67,173.84,173.75,0.65]
[1754951415343,26.67,173.84,173.74,0.06]
[1754951415545,0.67,173.83,173.74,0.06]
[1754951415932,0.67,173.83,173.74,0.71]
[1754951416965,26.0,173.85,173.75,23.06041898]
[1754951417132,26.0,173.85,173.76,0.65]
[1754951417332,26.67,173.85,173.76,0.65]
[1754951417540,26.67,173.85,173.77,5.75473326]
[1754951417735,26.67,173.85,173.78,15.75621557]
[1754951418161,26.67,173.85,173.79,0.65]
[1754951418364,0.67,173.87,173.79,0.65]
[1754951418681,0.67,173.87,173.8,15.10621557]
[1754951418883,4.57214014,173.95,173.81,0.67]
[1754951418884,0.68,173.9,173.81,0.67]
[1754951419747,0.68,173.9,173.79,48.00399322]
[1754951420386,0.68,173.9,173.8,15.77621557]
[1754951420564,0.68,173.9,173.81,0.67]
[1754951421271,0.68,173.9,173.8,15.10621557]
[1754951421672,0.68,173.9,173.81,6.42338419]
[1754951421862,0.68,173.9,173.81,0.67]
[1754951422059,0.68,173.9,173.79,47.33398158]
[1754951422284,0.68,173.9,173.8,0.67]
[1754951423364,0.68,173.9,173.81,15.10621557]
[1754951423576,0.68,173.9,173.82,0.67]
[1754951423779,0.68,173.93,173.83,15.10621557]
[1754951423976,0.68,173.93,173.84,0.67]
[1754951424361,26.0,173.92,173.85,56.68621557]
[1754951424576,26.0,173.92,173.86,0.67]
[1754951425163,0.68,173.93,173.86,0.67]
[1754951425164,0.68,173.93,173.86,6.42148547]
[1754951425362,0.68,173.93,173.87,0.67]
[1754951425690,0.68,173.93,173.85,57.35621557]
[1754951425862,0.68,173.93,173.85,41.58]
[1754951426059,0.68,173.93,173.86,0.67]
[1754951426292,26.0,173.95,173.87,15.10621557]
[1754951426293,26.68,173.95,173.87,15.10621557]
[1754951426475,26.68,173.95,173.88,0.67]
[1754951426671,0.68,173.95,173.88,0.67]
[1754951426879,0.68,173.97,173.88,0.67]
[1754951427071,0.68,173.97,173.89,5.75076197]
[1754951427303,26.68,173.97,173.89,5.75076197]
[1754951427680,26.68,173.97,173.9,0.67]
[1754951428074,0.68,173.96,173.88,5.75100616]
[1754951428477,0.68,173.96,173.87,6.42132641]
[1754951428698,0.68,173.96,173.87,0.67]
[1754951429010,0.68,173.96,173.87,6.4213793]
[1754951429368,0.68,173.96,173.87,0.67]
[1754951429574,0.68,173.96,173.87,6.42129233]
[1754951430074,0.68,173.96,173.87,0.67]
[1754951430485,0.68,173.96,173.87,6.42131743]
[1754951431001,26.0,173.93,173.84,0.67]
[1754951431296,0.68,173.92,173.84,0.67]
[1754951432187,0.68,173.92,173.81,0.67]
[1754951432806,26.0,173.89,173.82,23.06041898]
[1754951432987,30.0,173.9,173.84,15.10621557]
[1754951432988,56.0,173.9,173.84,15.10621557]
[1754951433183,56.0,173.9,173.85,0.67]
[1754951433383,56.68,173.9,173.85,0.67]
[1754951433586,56.68,173.9,173.85,6.42204055]
[1754951433587,26.68,173.9,173.85,6.42204055]
[1754951433880,26.0,173.9,173.86,0.67]
[1754951434705,0.68,173.89,173.82,0.67]
[1754951434906,26.0,173.9,173.83,0.67]
[1754951435408,0.68,173.89,173.83,0.67]
[1754951435972,26.0,173.9,173.83,6.42272289]
[1754951436171,26.0,173.9,173.84,0.67]
[1754951436804,26.0,173.87,173.81,0.67]
[1754951436986,0.68,173.89,173.81,0.67]
[1754951437482,0.68,173.89,173.81,90.57]
[1754951437687,0.68,173.89,173.82,0.67]
[1754951439487,26.0,173.91,173.82,21.52906139]
[1754951439687,0.68,173.94,173.83,23.73041898]
[1754951439894,0.68,173.94,173.84,0.67]
[1754951440198,26.68,173.94,173.84,42.19]
[1754951440496,0.68,173.93,173.85,0.67]
[1754951441079,0.68,173.93,173.85,6.42206627]
[1754951441297,0.68,173.93,173.85,5.75206627]
[1754951441488,0.68,173.93,173.86,0.67]
[1754951441692,0.68,173.93,173.82,0.67]
[1754951442085,0.68,173.93,173.83,23.06041898]
[1754951442394,0.68,173.93,173.84,0.67]
[1754951442993,0.68,173.93,173.85,5.75208513]
[1754951443197,0.68,173.93,173.86,0.67]
[1754951443600,0.68,173.95,173.86,0.67]
[1754951444117,26.68,173.95,173.86,0.67]
[1754951444294,0.68,173.94,173.86,0.67]
[1754951445180,26.68,173.94,173.86,0.67]
[1754951445375,26.68,173.94,173.83,89.9]
[1754951445376,0.68,173.93,173.83,89.9]
[1754951445690,0.68,173.93,173.82,0.67]
[1754951445691,0.68,173.93,173.82,6.42300862]
[1754951445895,0.68,173.93,173.82,0.67]
[1754951446492,26.0,173.89,173.8,41.52]
[1754951446783,0.68,173.88,173.8,41.52]
[1754951447100,26.68,173.88,173.8,41.52]
[1754951447478,26.0,173.88,173.8,41.52]
[1754951447679,0.68,173.87,173.8,41.52]
[1754951448099,26.68,173.87,173.8,41.52]
[1754951448289,26.0,173.87,173.8,41.52]
[1754951448505,26.0,173.87,173.8,42.19]
[1754951448506,0.68,173.86,173.8,42.19]
[1754951449407,26.0,173.89,173.8,41.52]
[1754951449610,4.76754173,173.9,173.8,41.52]
[1754951449611,26.0,173.87,173.81,0.68]
[1754951450110,0.68,173.88,173.81,0.68]
[1754951450613,0.68,173.88,173.8,41.52]
[1754951450912,26.68,173.88,173.8,41.52]
[1754951451113,0.68,173.87,173.8,41.52]
[1754951453504,0.68,173.87,173.8,42.2]
[1754951454089,0.68,173.87,173.8,41.52]
[1754951454287,26.68,173.87,173.8,41.52]
[1754951454497,0.68,173.86,173.8,41.52]
[1754951454700,26.0,173.84,173.8,41.52]
[1754951454905,26.0,173.84,173.8,42.2]
[1754951455127,26.0,173.84,173.81,0.68]
[1754951455428,26.0,173.82,173.79,89.9]
[1754951455629,26.0,173.82,173.77,131.44]
[1754951455808,26.68,173.82,173.77,42.22]
[1754951456010,0.68,173.81,173.76,0.06]
[1754951456212,26.0,173.82,173.76,0.06]
[1754951456422,0.68,173.8,173.76,0.06]
[1754951456622,0.68,173.8,173.76,0.74]
[1754951456932,0.68,173.8,173.76,0.06]
[1754951457231,0.68,173.79,173.76,0.06]
[1754951457531,0.68,173.78,173.76,0.06]
[1754951457828,0.68,173.81,173.76,0.06]
[1754951458006,0.68,173.8,173.76,0.06]
[1754951458628,26.0,173.82,173.76,0.74]
[1754951458823,0.68,173.81,173.76,0.06]
[1754951459021,0.68,173.8,173.76,0.06]
[1754951459331,26.0,173.81,173.76,0.74]
[1754951459538,26.0,173.82,173.76,0.74]
[1754951459746,26.68,173.81,173.76,0.74]
[1754951460220,26.0,173.81,173.76,0.74]
[1754951460413,71.54,173.85,173.77,7.95420341]
[1754951460414,30.0,173.85,173.77,7.95420341]
[1754951460613,0.68,173.89,173.79,7.95420341]
[1754951460825,26.68,173.89,173.8,6.43362795]
[1754951461145,26.68,173.88,173.81,0.68]
[1754951461713,0.68,173.88,173.81,0.68]
[1754951462320,26.0,173.89,173.81,0.68]
[1754951462515,26.0,173.9,173.79,0.68]
[1754951462516,0.68,173.88,173.79,0.68]
[1754951463517,0.68,173.88,173.79,6.43400165]
[1754951463848,26.0,173.9,173.8,0.68]
[1754951464020,26.0,173.89,173.8,0.68]
[1754951464213,26.68,173.89,173.8,0.68]
[1754951464417,0.68,173.88,173.8,0.68]
[1754951465645,0.68,173.88,173.8,6.43359682]
[1754951465816,0.68,173.88,173.81,0.68]
[1754951466017,26.68,173.9,173.81,0.68]
[1754951466240,26.68,173.89,173.81,0.68]
[1754951466527,0.68,173.88,173.77,41.54]
[1754951466722,0.68,173.88,173.79,0.68]
[1754951468627,26.0,173.84,173.77,42.22]
[1754951468827,26.68,173.84,173.77,132.12]
[1754951469316,0.68,173.83,173.76,0.06]
[1754951470649,0.68,173.83,173.76,0.74]
[1754951470961,26.68,173.83,173.76,0.74]
[1754951471267,26.0,173.81,173.76,0.06]
[1754951471649,0.68,173.8,173.76,0.06]
[1754951471824,26.0,173.82,173.77,0.68]
[1754951472030,0.68,173.81,173.76,0.06]
[1754951472336,0.68,173.81,173.76,0.74]
[1754951473229,26.0,173.83,173.77,0.68]
[1754951473543,0.68,173.83,173.77,0.68]
[1754951473743,0.68,173.83,173.76,0.06]
[1754951475035,0.68,173.83,173.76,0.74]
[1754951475930,26.0,173.84,173.76,0.74]
[1754951476352,26.0,173.84,173.76,90.64]
[1754951476541,26.0,173.84,173.76,89.96]
[1754951476744,26.0,173.84,173.77,0.68]
[1754951476946,0.68,173.83,173.77,90.58]
[1754951480366,26.0,173.84,173.78,0.72]
[1754951480780,26.03,173.85,173.78,0.72]
[1754951481071,0.03,173.85,173.78,0.72]
[1754951481252,26.03,173.85,173.78,0.72]
[1754951481568,0.03,173.85,173.78,0.72]
[1754951481866,0.03,173.85,173.78,90.62]
[1754951482081,0.03,173.85,173.79,14.42827441]
[1754951482455,0.03,173.85,173.8,0.72]
[1754951482655,0.03,173.85,173.81,42.26]
[1754951482861,0.67,173.84,173.76,0.78]
[1754951483176,26.67,173.84,173.76,0.78]
[1754951483475,0.67,173.83,173.76,0.78]
[1754951483677,26.67,173.83,173.76,0.78]
[1754951483971,0.03,173.85,173.76,0.06]
[1754951483972,26.67,173.82,173.76,0.06]
[1754951484176,0.67,173.81,173.76,0.06]
[1754951484550,26.0,173.82,173.77,0.72]
[1754951484753,0.67,173.81,173.76,0.06]
[1754951484973,0.67,173.81,173.76,0.78]
[1754951485281,26.0,173.82,173.77,0.72]
[1754951485461,26.67,173.82,173.77,0.72]
[1754951485861,26.67,173.82,173.78,0.72]
[1754951488861,26.0,173.83,173.78,0.72]
[1754951489070,26.67,173.83,173.78,0.72]
[1754951489273,26.0,173.83,173.79,0.72]
[1754951489474,0.7,173.85,173.8,0.72]
[1754951489784,26.0,173.84,173.81,0.72]
[1754951489953,26.0,173.84,173.77,0.72]
[1754951489954,0.67,173.83,173.77,0.72]
[1754951490564,26.03,173.85,173.77,0.72]
[1754951491067,26.7,173.85,173.77,6.4746497]
[1754951491383,26.7,173.85,173.78,0.72]
[1754951491983,26.0,173.84,173.78,0.72]
[1754951492558,26.0,173.82,173.76,0.06]
[1754951492764,0.67,173.81,173.76,0.06]
[1754951492970,0.67,173.8,173.76,0.06]
[1754951493365,0.67,173.8,173.76,0.78]
[1754951494165,0.67,173.79,173.76,0.06]
[1754951494689,0.67,173.81,173.76,0.06]
[1754951495067,26.67,173.81,173.77,0.72]
[1754951496583,26.67,173.81,173.76,0.06]
[1754951496772,0.67,173.8,173.76,0.06]
[1754951496967,0.67,173.79,173.76,0.06]
[1754951497375,26.67,173.79,173.76,0.06]
[1754951497587,0.67,173.78,173.76,0.06]
[1754951497758,26.67,173.79,173.76,0.06]
[1754951497959,5.43754173,173.82,173.77,0.72]
[1754951498170,26.0,173.81,173.78,0.72]
[1754951498369,7.77255273,173.85,173.79,0.72]
[1754951498706,0.7,173.85,173.79,6.47396229]
[1754951498879,0.7,173.85,173.79,0.72]
[1754951499188,0.7,173.85,173.79,6.47402914]
[1754951499387,0.03,173.85,173.8,0.72]
[1754951499587,0.03,173.85,173.81,0.72]
[1754951499964,26.03,173.85,173.82,0.72]
[1754951500187,0.03,173.85,173.82,0.72]
[1754951500370,0.7,173.85,173.79,6.47402914]
[1754951500765,0.03,173.82,173.79,0.72]
[1754951501174,0.03,173.82,173.78,41.52]
[1754951501471,0.03,173.82,173.78,42.24]
[1754951502699,0.67,173.81,173.76,0.06]
[1754951502862,0.67,173.8,173.76,41.58]
[1754951503062,0.67,173.79,173.76,41.58]
[1754951503296,26.0,173.8,173.76,41.58]
[1754951503597,26.0,173.8,173.77,0.72]
[1754951503823,26.0,173.81,173.77,0.72]
[1754951504089,26.0,173.81,173.78,0.72]
[1754951504296,26.7,173.82,173.78,0.72]
[1754951504471,26.03,173.82,173.79,0.72]
[1754951504667,0.03,173.82,173.8,0.72]
[1754951504894,0.03,173.82,173.81,0.72]
[1754951505269,0.03,173.82,173.81,42.24]
[1754951506200,0.03,173.82,173.81,63.09962446]
[1754951506389,0.03,173.82,173.81,71.05382787]
[1754951507071,0.03,173.82,173.81,63.09962446]
[1754951508579,0.03,173.82,173.81,71.05382787]
[1754951509803,0.03,173.82,173.81,160.95382787]
[1754951511391,0.03,173.85,173.82,15.10621557]
[1754951511694,0.03,173.85,173.84,5.75241601]
[1754951511889,0.03,173.85,173.84,145.12661942]
[1754951512092,0.03,173.86,173.85,15.10621557]
[1754951512405,0.03,173.86,173.85,23.77041898]
[1754951512787,0.03,173.92,173.91,41.10621557]
[1754951512986,0.03,173.92,173.91,90.58041898]
[1754951513287,0.03,173.92,173.91,91.29041898]
[1754951513893,0.03,173.92,173.91,97.0405196]
[1754951515321,0.03,173.92,173.91,97.61552966]
[1754951516192,1e-08,173.92,173.91,105.56973307]
[1754951517329,1e-08,173.92,173.91,97.59552966]
[1754951518732,1e-08,173.92,173.91,56.09552966]
[1754951518906,1e-08,173.92,173.91,97.59552966]
[1754951519230,1e-08,173.94,173.92,15.10621557]
[1754951519402,1e-08,173.94,173.93,65.13536292]
[1754951519906,1e-08,173.94,173.93,65.84536292]
[1754951521324,1e-08,173.94,173.93,71.59480234]
[1754951521503,0.03,174.0,173.98,15.10621557]
[1754951521712,0.03,174.0,173.99,49.45420341]
[1754951521912,1e-08,174.0,173.99,65.84516465]
[1754951522128,1e-08,174.02,174.0,41.10621557]
[1754951522448,1e-08,174.02,174.01,65.11509859]
[1754951522744,1e-08,174.02,174.01,65.82509859]
[1754951523303,1e-08,174.02,174.01,71.57189475]
[1754951523521,1e-08,174.03,174.02,23.06041898]
[1754951523727,1e-08,174.03,174.02,23.77041898]
[1754951524101,1e-08,174.03,174.02,41.04041898]
[1754951524422,1e-08,174.03,174.02,23.77041898]
[1754951524921,1e-08,174.03,174.02,23.06041898]
[1754951525226,1e-08,174.03,174.02,23.77041898]
[1754951525420,1e-08,174.03,174.02,70.2868849]
[1754951525928,1e-08,174.03,174.02,28.8068849]
[1754951526124,1e-08,174.03,174.02,71.57153149]
[1754951526830,1e-08,174.04,174.02,79.5257349]
[1754951527132,1e-08,174.05,174.04,41.10621557]
[1754951527314,1e-08,174.05,174.04,96.86080509]
[1754951527514,1e-08,174.06,174.05,15.10621557]
[1754951527708,1e-08,174.06,174.05,15.81621557]
[1754951528104,1e-08,174.06,174.05,23.77041898]
[1754951528316,1e-08,174.06,174.05,15.10621557]
[1754951528523,1e-08,174.06,174.05,23.06041898]
[1754951529219,1e-08,174.06,174.05,23.77041898]
[1754951529529,1e-08,174.06,174.05,29.51589441]
[1754951530633,1e-08,174.06,174.05,110.751691]
[1754951530808,0.69000001,174.06,174.05,152.211691]
[1754951531554,0.69000001,174.06,174.05,89.9]
[1754951531718,0.69000001,174.06,174.05,131.36]
[1754951532042,1e-08,174.06,174.05,137.10547543]
[1754951532541,1e-08,174.06,174.05,70.26589441]
[1754951532717,1e-08,174.06,174.05,70.97589441]
[1754951534640,1e-08,174.07,174.06,15.10621557]
[1754951534937,1e-08,174.07,174.06,23.77041898]
[1754951535324,0.1,174.1,174.06,49.77041898]
[1754951535523,0.1,174.1,174.09,28.8045743]
[1754951535737,0.1,174.1,174.09,70.2645743]
[1754951535938,0.1,174.1,174.09,70.9745743]
[1754951536128,0.1,174.1,174.09,62.31037089]
[1754951536333,0.1,174.1,174.09,70.2645743]
[1754951536537,0.1,174.1,174.09,70.9745743]
[1754951537123,0.69,174.16,174.1,15.10621557]
[1754951537324,0.69,174.16,174.13,15.10621557]
[1754951537643,2.91117137,174.26,174.15,5.74217628]
[1754951537644,26.0,174.21,174.15,5.74217628]
[1754951537828,0.69,174.2,174.16,41.44]
[1754951540437,0.72,174.2,174.16,41.44]
[1754951540946,0.68,174.19,174.16,47.18179492]
[1754951541150,0.68,174.18,174.16,47.18179492]
[1754951541552,0.68,174.17,174.11,15.10621557]
[1754951541741,0.68,174.17,174.09,26.0]
[1754951541944,0.68,174.17,174.1,56.52621557]
[1754951542827,0.68,174.17,174.1,64.54041898]
[1754951543021,0.68,174.17,174.1,65.20041898]
[1754951543549,0.68,174.17,174.1,23.78041898]
[1754951543758,0.68,174.17,174.12,5.74316563]
[1754951543954,0.03,174.18,174.13,42.08]
[1754951544128,0.03,174.18,174.14,23.06041898]
[1754951544437,0.03,174.18,174.15,41.42]
[1754951544875,0.03,174.18,174.15,50.03420341]
[1754951545033,0.03,174.18,174.16,0.66]
[1754951545246,0.03,174.18,174.17,64.48041898]
[1754951545738,0.03,174.18,174.17,70.22193588]
[1754951545940,0.03,174.2,174.17,71.45608757]
[1754951546160,0.03,174.2,174.19,23.06041898]
[1754951546468,0.03,174.24,174.2,15.10621557]
[1754951546646,0.03,174.24,174.23,7.95420341]
[1754951546968,0.03,174.24,174.21,0.66]
[1754951547138,0.71,174.24,174.22,41.42]
[1754951547335,0.03,174.24,174.23,41.42]
[1754951547942,0.71,174.24,174.23,41.42]
[1754951549871,0.71,174.24,174.21,41.42]
[1754951550057,0.71,174.24,174.19,41.42]
[1754951550770,0.68,174.23,174.19,41.42]
[1754951551271,0.03,174.24,174.19,41.42]
[1754951551272,0.68,174.22,174.19,41.42]
[1754951551576,0.71,174.24,174.19,42.08]
[1754951551881,0.03,174.24,174.19,41.42]
[1754951552044,0.03,174.24,174.2,6.40052812]
[1754951552471,0.03,174.24,174.19,56.52621557]
[1754951552647,0.68,174.23,174.19,41.42]
[1754951552976,0.68,174.22,174.19,41.42]
[1754951553284,0.68,174.22,174.2,41.4]
[1754951554148,0.71,174.24,174.2,41.4]
[1754951554355,0.68,174.23,174.2,41.4]
[1754951554655,0.68,174.23,174.17,0.66]
[1754951554969,0.68,174.23,174.18,41.4]
[1754951555149,0.03,174.24,174.19,0.66]
[1754951555350,0.03,174.24,174.2,0.66]
[1754951555648,0.03,174.24,174.21,41.4]
[1754951556272,0.03,174.24,174.21,42.06]
[1754951556679,0.03,174.24,174.21,41.4]
[1754951557176,0.68,174.23,174.17,15.10621557]
[1754951557374,0.68,174.23,174.18,41.4]
[1754951557578,0.68,174.22,174.18,41.4]
[1754951558478,0.03,174.24,174.19,0.66]
[1754951558674,0.71,174.24,174.19,0.66]
[1754951558866,0.68,174.23,174.18,41.4]
[1754951559063,0.68,174.23,174.18,47.14114989]
[1754951559266,0.03,174.24,174.19,0.66]
[1754951559781,0.71,174.24,174.18,42.06]
[1754951560374,0.03,174.24,174.19,0.66]
[1754951560571,0.03,174.24,174.2,0.66]
[1754951560756,0.03,174.24,174.21,41.4]
[1754951561080,0.71,174.24,174.21,41.4]
[1754951561283,0.68,174.23,174.21,41.4]
[1754951562465,0.03,174.24,174.21,41.4]
[1754951562872,0.71,174.24,174.21,41.4]
[1754951563583,0.03,174.24,174.21,41.4]
[1754951563963,0.71,174.24,174.21,41.4]
[1754951566780,0.68,174.23,174.21,41.4]
[1754951566983,0.68,174.22,174.17,0.66]
[1754951567177,0.68,174.21,174.18,41.4]
[1754951568989,0.71,174.21,174.18,41.4]
[1754951569175,26.0,174.22,174.19,0.65]
[1754951569868,26.0,174.22,174.18,41.4]
[1754951570062,26.71,174.22,174.18,42.05]
[1754951570263,26.0,174.22,174.18,42.05]
[1754951570680,26.0,174.22,174.18,41.4]
[1754951570681,0.71,174.21,174.18,41.4]
[1754951571408,26.71,174.2,174.18,41.4]
[1754951571772,26.71,174.2,174.15,0.65]
[1754951571773,0.71,174.2,174.15,0.65]
[1754951571973,0.71,174.2,174.16,41.38]
[1754951572186,0.71,174.2,174.16,42.03]
[1754951572390,5.802729,174.21,174.17,0.65]
[1754951572583,0.71,174.21,174.17,0.65]
[1754951573503,0.71,174.2,174.16,41.38]
[1754951573666,0.71,174.21,174.17,0.65]
[1754951574789,17.247822,174.22,174.16,41.38]
[1754951574790,26.0,174.19,174.16,41.38]
[1754951574996,0.71,174.18,174.16,41.38]
[1754951576170,26.0,174.19,174.16,41.38]
[1754951576578,0.71,174.18,174.16,41.38]
[1754951577196,26.0,174.19,174.16,41.38]
[1754951577571,26.71,174.19,174.16,41.38]
[1754951578772,0.71,174.18,174.16,41.38]
[1754951579195,26.0,174.19,174.16,41.38]
[1754951579388,26.71,174.19,174.16,41.38]
[1754951579590,0.71,174.18,174.16,41.38]